Cogmind - Beta 12 @@@ ROGUE MODE // 2023.08.15 @ 16:51:48 Player: Richard Blunt Result: Destroyed by G-47 Trooper with Particle Gun Performance ------------- Evolutions (3) 1500 Regions Visited (12) 2400 Robots Destroyed (219) 1095 Value Destroyed (8911) 8911 Prototype IDs (30) 600 Alien Tech Used (0) 0 Bonus (3568) 3568 TOTAL SCORE: 18074 Bonus ------- High Alert Combat Kills 1508 Follower Combat Kills 200 Entered Garrisons 600 Used RIF Installer 1000 Aligned with FarCom 300 Friendly Fire -40 Cogmind --------- Core Integrity 0/700 Matter 61/300 Energy 321/325 System Corruption 5% Temperature Warning (333) Movement Treading (160) Location -7/Garrison Parts ------- > --- POWER (1) -------- Antimatter Reactor > --- PROPULSION (4) --- Heavy Treads Heavy Treads > --- UTILITY (6) ------ High-capacity Storage Unit Damper Plating > --- WEAPON (2) ------- Heavy Battle Rifle Heavy Battle Rifle > --- INVENTORY (20) --- Heavy Deuterium Engine Heavy Treads Heavy Treads Heavy Treads Heavy Treads Armored Wheel Cloak of Protection Relay Coupler [NC] (31) Long-range Tractor Beam Coil Gun Hypervelocity Gauss Rifle Remote Datajack Axe Peak State ------------ > --- POWER ------------ Antimatter Reactor > --- PROPULSION ------- Heavy Treads Heavy Treads > --- UTILITY ---------- High-capacity Storage Unit Cloak of Protection Damper Plating > --- WEAPON ----------- Hypervelocity Gauss Rifle Hypervelocity Gauss Rifle > --- INVENTORY -------- Heavy Deuterium Engine Heavy Treads Heavy Treads Heavy Treads Heavy Treads Armored Wheel Damper Plating Long-range Tractor Beam Heavy Battle Rifle Heavy Battle Rifle Coil Gun Remote Datajack Axe [Rating: 84] Favorites ----------- Power Light Nuclear Core Engine Ion Engine Power Core Light Nuclear Core Reactor Antimatter Reactor Propulsion Light Treads Treads Light Treads Leg Carbon-fiber Leg Wheel Wheel Utility High-capacity Storage Unit Device Hardlight Generator Storage High-capacity Storage Unit Processor Improved Launcher Guidance Computer Hackware Relay Coupler [NC] Protection Medium Reactive Plating Weapon Gauss Rifle Energy Gun Heavy EM Shotgun Ballistic Gun Gauss Rifle Ballistic Cannon Advanced Assault Cannon Launcher Grenade Launcher Special Weapon Mining Laser Impact Weapon Maul Slashing Weapon Axe Build | -11 -10 -10 -10 -9 -8 -8 -8 -8 -7 -7 -7 -7 ------- Run | Jun Mat Min Exi Min Mat Gar Mat Gar Fac Was Fac Gar Slots Evolved 6 | . . . . . 4 . . . 2 . . . Power . | . . . . . . . . . . . . . Propulsion 2 | . . . . . 1 . . . 1 . . . Utility 4 | . . . . . 3 . . . 1 . . . Weapon . | . . . . . . . . . . . . . Parts Attached 283 | 7 13 5 . . 70 37 32 21 61 16 15 6 Power 20 | 1 . 2 . . 6 1 3 2 3 1 1 . Engine 9 | 1 . 2 . . 3 . 2 . 1 . . . Core 9 | . . . . . 3 1 1 2 2 . . . Reactor 2 | . . . . . . . . . . 1 1 . Propulsion 87 | 2 6 . . . 21 9 7 7 23 10 1 1 Treads 67 | 2 3 . . . 14 9 7 7 19 4 1 1 Leg 1 | . . . . . . . . . 1 . . . Wheel 19 | . 3 . . . 7 . . . 3 6 . . Hover . | . . . . . . . . . . . . . Flight . | . . . . . . . . . . . . . Utility 83 | 2 2 . . . 23 9 10 5 22 2 7 1 Device 20 | 1 . . . . 2 . 1 . 10 . 5 1 Storage 5 | 1 1 . . . 2 . . . . . 1 . Processor 1 | . . . . . . . . . . 1 . . Hackware 1 | . . . . . . . . . 1 . . . Protection 56 | . 1 . . . 19 9 9 5 11 1 1 . Artifact . | . . . . . . . . . . . . . Weapon 93 | 2 5 3 . . 20 18 12 7 13 3 6 4 Energy Gun 3 | . . . . . . . . . 3 . . . Energy Cannon . | . . . . . . . . . . . . . Ballistic Gun 49 | 2 2 1 . . 12 12 6 3 3 2 3 3 Ballistic Cannon 11 | . . . . . 2 . 5 1 3 . . . Launcher 13 | . 2 2 . . 3 3 . 1 2 . . . Special Weapon 2 | . 1 . . . . . . . . 1 . . Impact Weapon 7 | . . . . . 3 3 1 . . . . . Slashing Weapon 8 | . . . . . . . . 2 2 . 3 1 Piercing Weapon . | . . . . . . . . . . . . . Special Melee Weapon . | . . . . . . . . . . . . . Unidentified Prototypes 1 | . . . . . . . . . 1 . . . Parts Lost 79 | . 2 2 . . 23 3 13 2 31 1 1 1 Power 10 | . . 1 . . 4 . 2 . 3 . . . Propulsion 24 | . 2 . . . 6 1 3 . 12 . . . Utility 35 | . . . . . 10 2 7 1 13 1 1 . Weapon 10 | . . 1 . . 3 . 1 1 3 . . 1 Highest Loss Streak 9 | . 1 2 . . 5 1 5 1 9 1 1 1 To Critical Strikes . | . . . . . . . . . . . . . Average Slot Usage (%) 89 | . 100 97 85 85 92 92 98 94 92 60 58 56 Engine 4 | . 14 13 14 14 2 3 5 2 1 . . . Core 3 | . . . . . 3 5 3 6 3 . . . Treads 21 | . 20 14 14 14 18 27 26 27 27 8 15 15 Wheel 4 | . 7 14 14 14 8 . . . 1 11 . . Device 6 | . 8 . . . 4 9 8 9 10 4 5 4 Storage 9 | . 14 14 14 14 9 9 9 9 7 7 6 7 Protection 18 | . 5 14 14 14 27 20 26 22 18 7 6 7 Ballistic Gun 11 | . 24 10 . . 14 16 7 9 2 13 11 11 Ballistic Cannon 2 | . . . . . 1 . 9 4 6 . . . Launcher 1 | . . 3 14 14 . . . . 1 . . . Slashing Weapon 1 | . . . . . . . . 3 3 . 3 1 Naked Turns . | . . . . . . . . . . . . . Heaviest Build 228 | 14 54 57 57 57 228 97 93 89 93 114 121 114 Greatest Support 140 | 40 40 10 10 10 60 60 60 60 92 140 140 140 Greatest Overweight (x) 21 | . 5 5 5 5 21 1 1 1 5 5 1 1 Average Overweight (x) 1 | . 2 5 5 5 2 1 . 1 . 1 . . Largest Inventory Capacity 35 | 8 20 20 20 20 35 20 20 20 20 20 20 20 Average Capacity 20 | 7 15 20 20 20 24 20 20 20 20 20 19 20 Most Carried 22 | 8 20 20 20 20 22 20 20 20 19 20 20 19 Average Carried 17 | 6 11 19 19 20 19 19 17 19 14 19 18 16 Final Capacity 20 | 8 20 20 20 20 20 20 20 20 20 20 20 20 Final Carried 20 | 8 20 20 20 20 19 20 18 19 14 20 16 17 Class Distribution -------------------- 72% | Scavenger-Mutant 22% | Mutant 5% | Hauler-Mutant Dominant Class ---------------- Mutant | -10/Materials Mutant | -10/Mines Mutant | -10/Exiles Mutant | -9/Mines Scavenger-Mutant | -8/Materials Scavenger-Mutant | -8/Garrison Scavenger-Mutant | -8/Materials Scavenger-Mutant | -8/Garrison Scavenger-Mutant | -7/Factory Scavenger-Mutant | -7/Waste Scavenger-Mutant | -7/Factory Scavenger-Mutant | -7/Garrison Resources | -11 -10 -10 -10 -9 -8 -8 -8 -8 -7 -7 -7 -7 ----------- Run | Jun Mat Min Exi Min Mat Gar Mat Gar Fac Was Fac Gar Matter Collected 7762 | 343 385 122 . . 1779 1026 1066 685 1266 448 416 226 Remotely 878 | . . . . . . . . . 588 . 110 180 Salvage Created 9036 | 186 588 96 . . 1875 1248 1101 754 1500 1007 386 295 Parts 449 | 7 33 22 . . 93 74 49 48 70 21 18 14 Haulers Intercepted 9 | . 1 . . . 6 . . . 2 . . . Recyclers Shooed 5 | . . . . . 1 . 2 . . . 2 . Parts Field Recycled . | . . . . . . . . . . . . . Retrieved Matter . | . . . . . . . . . . . . . Parts Self-Destructed . | . . . . . . . . . . . . . Prevented . | . . . . . . . . . . . . . Kills | -11 -10 -10 -10 -9 -8 -8 -8 -8 -7 -7 -7 -7 ------- Run | Jun Mat Min Exi Min Mat Gar Mat Gar Fac Was Fac Gar Combat Hostiles Destroyed 171 | . 12 9 . . 36 31 18 20 32 4 3 6 Melee 17 | . . . . . 3 . . . 12 . 1 1 Guns 90 | . 7 . . . 20 22 10 13 7 4 2 5 Cannons 22 | . . . . . 5 . 8 3 6 . . . AOE 38 | . 5 9 . . 4 9 . 4 7 . . . Classes Destroyed 18 | 2 5 . . . 4 2 3 . 1 1 . . Worker 8 | . 1 3 . . 2 . 2 . . . . . Builder 5 | . . . . . . . 1 . 4 . . . Tunneler 6 | 5 . . . . 1 . . . . . . . Hauler 9 | . 1 . . . 6 . . . 2 . . . Recycler 10 | 1 1 . . . 1 . 3 . 1 . 3 . Mechanic 1 | . . . . . . . . . 1 . . . Operator 2 | . . . . . 2 . . . . . . . Watcher 6 | . 2 . . . 3 . 1 . . . . . Swarmer 34 | . 3 9 . . 5 7 . 4 3 . 1 2 Grunt 83 | . 9 . . . 20 12 13 5 21 . . 3 Brawler 4 | . . . . . . . 1 . 2 . . 1 Duelist 2 | . . . . . 1 1 . . . . . . Sentry 29 | . . . . . 9 8 3 7 1 . 1 . Specialist 2 | . . . . . . 2 . . . . . . Hunter 7 | . . . . . . . 1 4 2 . . . Programmer 5 | . . . . . . 1 . . 3 . 1 . Heavy 1 | . . . . . 1 . . . . . . . Compactor 4 | . . . . . . . . . . 4 . . Surgeon 1 | . . . . . . . . . . 1 . . Best Kill Streak 9 | 2 4 5 . . 6 9 4 4 9 2 4 4 Combat Bots Only 9 | . 3 3 . . 5 9 3 4 8 2 1 4 Max Kills in Single Turn 4 | 1 2 3 . . 1 4 2 2 3 1 1 1 Gunslinging . | . . . . . . . . . . . . . Exploded 4 | . 1 3 . . 1 4 . 2 3 . . . Melee 1 | . . . . . 1 . . . 1 . 1 1 Uniques/NPCs Destroyed . | . . . . . . . . . . . . . Combat | -11 -10 -10 -10 -9 -8 -8 -8 -8 -7 -7 -7 -7 -------- Run | Jun Mat Min Exi Min Mat Gar Mat Gar Fac Was Fac Gar Damage Taken 15843 | . 628 149 . . 3614 1533 2056 751 4010 648 1466 988 Core 1328 | . 90 . . . 283 55 148 38 232 46 344 92 Absorbed by Shields 1004 | . . . . . . 348 348 244 64 . . . Redirected to Shielding 44 | . . . . . 4 . 3 7 30 . . . Regen/Repaired (Parts) 619 | . . . . . . . 168 . . 108 343 . Core Remaining (%) 56 | 100 . . . 64 . . . 4 . . . . Volleys Fired 615 | 22 66 8 . . 142 81 93 55 78 22 19 29 Largest 2 | 2 2 1 . . 2 2 2 2 2 2 2 2 Hottest 100 | 40 100 30 . . 60 66 96 76 100 66 66 66 Shots Fired 1130 | 39 125 8 . . 265 146 177 107 135 37 37 54 Gun 872 | 39 118 . . . 198 133 123 84 50 36 37 54 Cannon 195 | . . . . . 42 . 54 20 79 . . . Launcher 61 | . 6 8 . . 25 13 . 3 6 . . . Special 2 | . 1 . . . . . . . . 1 . . Kinetic 1048 | 39 118 . . . 240 133 177 104 110 36 37 54 Thermal 1 | . 1 . . . . . . . . . . . Explosive 61 | . 6 8 . . 25 13 . 3 6 . . . Electromagnetic 19 | . . . . . . . . . 19 . . . Robot Hit Streak 23 | 5 8 1 . . 13 9 9 23 11 6 8 8 Robot Miss Streak 7 | 3 4 3 . . 7 3 4 3 4 3 4 7 Penetration Max 2 | . . . . . . 1 1 1 1 1 1 2 Secondary Targets 7 | . 2 . . . 1 1 2 1 . . . . Max Gunslinging Chain 1 | . 1 . . . 1 1 1 1 . . . . Shots Hit Robots 763 | 24 72 1 . . 192 89 110 68 124 22 34 27 Core Hits 417 | 10 32 14 . . 108 60 44 36 74 9 14 16 Critical Kills 22 | . . . . . 1 7 1 2 3 5 . 3 Critical Parts Destroyed 31 | . . . . . 5 12 1 . . . 9 4 Critical Strikes 75 | . . . . . 10 20 3 3 10 13 9 7 Destroy 57 | . . . . . 1 20 2 2 3 13 9 7 Blast 9 | . . . . . 4 . 1 1 3 . . . Smash 5 | . . . . . 5 . . . . . . . Sever 4 | . . . . . . . . . 4 . . . Melee Attacks 121 | . . . . . 20 17 2 10 54 . 18 . Impact 39 | . . . . . 20 17 2 . . . . . Slashing 82 | . . . . . . . . 10 54 . 18 . Piercing . | . . . . . . . . . . . . . Sneak Attacks 9 | . . . . . 3 . . . 3 . 3 . Combat Hostiles 1 | . . . . . . . . . 1 . . . Follow-up Attacks . | . . . . . . . . . . . . . Damage Inflicted 17728 | 230 1069 423 . . 3772 2015 2540 1567 4785 196 683 448 Guns 8820 | 230 754 . . . 2146 1444 1635 1141 671 196 191 412 Cannons 3025 | . . . . . 437 . 899 247 1442 . . . Explosions 3206 | . 311 423 . . 416 571 . 179 1306 . . . Melee 2582 | . . . . . 749 . . . 1341 . 492 . Ramming 95 | . 4 . . . 24 . 6 . 25 . . 36 Kinetic 11443 | 230 754 . . . 2583 1444 2534 1388 1711 196 191 412 Thermal 364 | . . . . . . . . . 364 . . . Explosive 2842 | . 311 423 . . 416 571 . 179 942 . . . Electromagnetic 402 | . . . . . . . . . 402 . . . Impact 749 | . . . . . 749 . . . . . . . Slashing 1833 | . . . . . . . . . 1341 . 492 . Piercing . | . . . . . . . . . . . . . Highest Corruption 10 | . . . . . . . . . 10 10 10 5 Average Corruption 8 | . . . . . . . . . 9 10 5 5 Corruption Purged 5 | . . . . . . . . . . . 5 . Corruption Blocked 3 | . . . . . . . . . 3 . . . Effects 127 | . . . . . . . . . 60 31 26 10 Message Errors 24 | . . . . . . . . . 14 4 5 1 Matter Fused 40 | . . . . . . . . . 19 8 10 3 Heat Flow Errors 14 | . . . . . . . . . 4 3 6 1 Energy Discharges 14 | . . . . . . . . . 7 4 2 1 Parts Rejected 1 | . . . . . . . . . 1 . . . Parts Fused 1 | . . . . . . . . . 1 . . . Data Loss (minor) 13 | . . . . . . . . . 6 4 1 2 Data Loss (major) 6 | . . . . . . . . . 1 4 1 . Misfires 5 | . . . . . . . . . 3 2 . . Alerts 4 | . . . . . . . . . 2 1 . 1 Weapon Failures 5 | . . . . . . . . . 2 1 1 1 Overload Shots . | . . . . . . . . . . . . . Overflow Damage 508 | . . . . . 292 6 7 . 158 . 45 . Projectiles 55 | . . . . . 12 . 7 . 36 . . . Explosions 42 | . . . . . . 6 . . 36 . . . Melee 411 | . . . . . 280 . . . 86 . 45 . Knockbacks 42 | . . . . . 6 . 16 2 17 . . 1 Impact 5 | . . . . . 4 . . . . . . 1 Kinetic 31 | . . . . . 2 . 13 2 14 . . . Secondary 6 | . . . . . . . 3 . 3 . . . Self-Inflicted Damage 343 | . 23 76 . . 9 128 . . 107 . . . Shots 11 | . 1 2 . . . 3 . . 5 . . . Rammed 13 | . 1 . . . 2 . 2 . 2 . . 6 Targets Rammed 16 | . 1 . . . 3 . 2 . 3 . . 7 Kicked . | . . . . . . . . . . . . . Crushed 3 | . . . . . 1 . . . 1 . . 1 Highest Temperature 648 | . 40 . . . 436 434 562 330 459 211 583 648 Average Temperature 139 | . 12 . . . 129 109 167 68 143 54 168 257 Received Heat Transfer 5704 | . 315 . . . 1584 484 930 195 1581 9 156 450 Effects 74 | . . . . . 13 2 19 1 4 . 15 20 Shutdowns 15 | . . . . . 4 . 3 . 2 . 3 3 Energy Bleed 7 | . . . . . 1 . 4 . . . . 2 Interference 19 | . . . . . 6 . 7 . . . 4 2 Matter Decay 7 | . . . . . 1 . 1 . 1 . . 4 Short Circuit 8 | . . . . . . 1 1 1 1 . 1 3 Damage (minor) 5 | . . . . . 1 1 1 . . . 1 1 Damage (major) 9 | . . . . . . . 1 . . . 3 5 Damage (core) 4 | . . . . . . . 1 . . . 3 . Siege Activations . | . . . . . . . . . . . . . Robots Corrupted . | . . . . . . . . . . . . . Combat Hostiles . | . . . . . . . . . . . . . Parts Fried 12 | . . . . . 12 . . . . . . . Impact Corruptions 10 | . . . . . 10 . . . . . . . Robots Melted . | . . . . . . . . . . . . . Combat Hostiles . | . . . . . . . . . . . . . Parts Melted . | . . . . . . . . . . . . . Heat Transferred 350 | . . . . . . . . . 350 . . . Parts Sabotaged . | . . . . . . . . . . . . . Parts Stolen . | . . . . . . . . . . . . . Parts Stripped . | . . . . . . . . . . . . . Power Chain Reactions 2 | . . . . . . . . . 2 . . . Missiles Intercepted . | . . . . . . . . . . . . . Alert | -11 -10 -10 -10 -9 -8 -8 -8 -8 -7 -7 -7 -7 ------- Run | Jun Mat Min Exi Min Mat Gar Mat Gar Fac Was Fac Gar Peak Influence 1529 | 30 145 178 . . 382 1529 867 1250 889 319 165 306 Initial 744 | . 19 . . . . 178 744 121 655 289 . 11 Average 417 | 13 57 85 . . 135 881 627 661 683 104 23 185 Maximum Alert Level 4 | . . . . . 1 4 3 4 3 1 . 1 Low Security (%) 40 | 100 100 100 . 100 68 4 . 6 . 63 100 61 Level 1 13 | . . . . . 31 2 9 23 . 36 . 38 Level 2 20 | . . . . . . 27 54 23 57 . . . Level 3 19 | . . . . . . 36 35 39 42 . . . Level 4 5 | . . . . . . 29 . 7 . . . . Level 5 . | . . . . . . . . . . . . . High Security . | . . . . . . . . . . . . . Max Security . | . . . . . . . . . . . . . Squads Dispatched 29 | . 1 . . . 11 . 2 . 13 . 2 . Investigation 7 | . 1 . . . 3 . . . 2 . 1 . Extermination 5 | . . . . . . . . . 4 . 1 . Reinforcement 8 | . . . . . 4 . 1 . 3 . . . Assault 5 | . . . . . . . 1 . 4 . . . Garrison 4 | . . . . . 4 . . . . . . . Intercept . | . . . . . . . . . . . . . Searches Triggered . | . . . . . . . . . . . . . Construction Impeded 1 | . . . . . . . . . 1 . . . Haulers Reinforced 1 | . . . . . . . . . 1 . . . Active Scanning Responses . | . . . . . . . . . . . . . Cargo Convoy Interrupts 1 | . . . . . . . . . 1 . . . Stealth | -11 -10 -10 -10 -9 -8 -8 -8 -8 -7 -7 -7 -7 --------- Run | Jun Mat Min Exi Min Mat Gar Mat Gar Fac Was Fac Gar Distress Signals 13 | . 2 . . . 5 . 3 . 2 . 1 . Communications Jammed . | . . . . . . . . . . . . . Distress Signals . | . . . . . . . . . . . . . Times Spotted 256 | . 18 9 . . 57 36 34 19 55 5 10 13 Peak Tracking Total 9 | . 4 3 . . 5 9 6 4 8 2 5 6 Tactical Retreats 16 | . . . . . 2 . 2 . 5 . 3 4 Traps | -11 -10 -10 -10 -9 -8 -8 -8 -8 -7 -7 -7 -7 ------- Run | Jun Mat Min Exi Min Mat Gar Mat Gar Fac Was Fac Gar Traps Triggered 22 | . 1 . . . . 9 1 8 1 . 2 . Indirectly . | . . . . . . . . . . . . . Trap Hack Attempts . | . . . . . . . . . . . . . Triggered . | . . . . . . . . . . . . . Disarmed . | . . . . . . . . . . . . . Reprogrammed . | . . . . . . . . . . . . . Reused . | . . . . . . . . . . . . . Traps Extracted . | . . . . . . . . . . . . . Installed . | . . . . . . . . . . . . . Triggered 3 | . . . . . . . . . 3 . . . Machines | -11 -10 -10 -10 -9 -8 -8 -8 -8 -7 -7 -7 -7 ---------- Run | Jun Mat Min Exi Min Mat Gar Mat Gar Fac Was Fac Gar Machines Disabled 16 | . . 1 . . 1 5 2 5 1 . . 1 Max in Single Turn 1 | . . 1 . . 1 1 1 1 1 . . 1 Garrison Relay 7 | . . . . . . 2 . 4 . . . 1 Phase Generator 1 | . . . . . . 1 . . . . . . Machines Repaired . | . . . . . . . . . . . . . Machines Sabotaged . | . . . . . . . . . . . . . Overloaded Fab Kills . | . . . . . . . . . . . . . Hacking | -11 -10 -10 -10 -9 -8 -8 -8 -8 -7 -7 -7 -7 --------- Run | Jun Mat Min Exi Min Mat Gar Mat Gar Fac Was Fac Gar Machines Accessed 42 | . 7 1 3 . 9 1 6 1 5 . 8 1 Terminals 28 | . 5 1 . . 6 1 4 1 3 . 6 1 Fabricators 1 | . . . . . . . . . 1 . . . Repair Stations 4 | . 1 . . . . . 1 . 1 . 1 . Recycling Units 2 | . 1 . . . 1 . . . . . . . Scanalyzers 1 | . . . . . 1 . . . . . . . Garrison Access 3 | . . . . . 1 . 1 . . . 1 . Total Hacks 94 | . 14 2 3 . 21 2 17 3 12 . 18 2 Successful 43 | . 7 1 3 . 11 1 6 . 5 . 9 . Failed 51 | . 7 1 . . 10 1 11 3 7 . 9 2 Catastrophic 14 | . 1 . . . 3 . 1 . 2 . 6 1 Database Lockouts . | . . . . . . . . . . . . . Manual 39 | . 10 . 1 . 14 . 9 . . . 5 . Terminals 65 | . 10 2 . . 15 2 14 3 8 . 9 2 Fabricators 2 | . . . . . . . . . 2 . . . Repair Stations 15 | . 3 . . . . . 2 . 2 . 8 . Recycling Units 2 | . 1 . . . 1 . . . . . . . Scanalyzers 4 | . . . . . 4 . . . . . . . Garrison Access 3 | . . . . . 1 . 1 . . . 1 . Terminal Hacks 22 | . 5 1 3 . 6 1 3 . 1 . 2 . Record 2 | . . . 2 . . . . . . . . . Robot Analysis 3 | . 2 . . . 1 . . . . . . . Prototype ID Bank 3 | . 2 . . . 1 . . . . . . . Open DSF 1 | . . . . . . . . . 1 . . . Emergency Access Points 1 | . . . . . . 1 . . . . . . Unreport Threat 6 | . 1 . . . 2 . 3 . . . . . Locate Traps 3 | . . . . . 2 . . . . . 1 . Zone Layout 2 | . . 1 . . . . . . . . 1 . EX-Prototype ID Bank 1 | . . . 1 . . . . . . . . . Fabricator Hacks 2 | . . . . . . . . . 2 . . . Load Schematic 1 | . . . . . . . . . 1 . . . Build 1 | . . . . . . . . . 1 . . . Repair Station Hacks 11 | . 1 . . . . . 2 . 2 . 6 . Scan Component 8 | . 1 . . . . . 1 . 2 . 4 . Repair 3 | . . . . . . . 1 . . . 2 . Recycling Unit Hacks . | . . . . . . . . . . . . . Scanalyzer 3 | . . . . . 3 . . . . . . . Insert Component 1 | . . . . . 1 . . . . . . . Analyze 2 | . . . . . 2 . . . . . . . Garrison Access Hacks 3 | . . . . . 1 . 1 . . . 1 . Unlock Access 3 | . . . . . 1 . 1 . . . 1 . Unauthorized Hacks 2 | . 1 . . . 1 . . . . . . . Terminals . | . . . . . . . . . . . . . Fabricators . | . . . . . . . . . . . . . Repair Stations . | . . . . . . . . . . . . . Recycling Units 2 | . 1 . . . 1 . . . . . . . Monitor 1 | . 1 . . . . . . . . . . . Tunnel 1 | . . . . . 1 . . . . . . . Scanalyzers . | . . . . . . . . . . . . . Garrison Access . | . . . . . . . . . . . . . Data Cores Recovered . | . . . . . . . . . . . . . Used . | . . . . . . . . . . . . . Hacking Detections 31 | . 5 . . . 6 . 5 1 5 . 8 1 Full Trace Events 7 | . 1 . . . 2 . . . 2 . 1 1 Feedback Events . | . . . . . . . . . . . . . Feedback Blocked . | . . . . . . . . . . . . . Robot Schematics Acquired . | . . . . . . . . . . . . . Robots Built . | . . . . . . . . . . . . . Authchips . | . . . . . . . . . . . . . Time . | . . . . . . . . . . . . . Total Robot Build Rating . | . . . . . . . . . . . . . Part Schematics Acquired 1 | . . . . . 1 . . . . . . . Parts Built 1 | . . . . . . . . . 1 . . . Authchips . | . . . . . . . . . . . . . Time 36 | . . . . . . . . . 36 . . . Total Part Build Rating 3 | . . . . . . . . . 3 . . . Parts Repaired 3 | . . . . . . . 1 . . . 2 . Time 114 | . . . . . . . 38 . . . 76 . Parts Recycled . | . . . . . . . . . . . . . Recycled Matter . | . . . . . . . . . . . . . Retrieved Matter . | . . . . . . . . . . . . . Retrieved Components . | . . . . . . . . . . . . . Parts Scanalyzed 1 | . . . . . 1 . . . . . . . Part Schematics Acquired 1 | . . . . . 1 . . . . . . . Parts Damaged . | . . . . . . . . . . . . . Bothacking | -11 -10 -10 -10 -9 -8 -8 -8 -8 -7 -7 -7 -7 ------------ Run | Jun Mat Min Exi Min Mat Gar Mat Gar Fac Was Fac Gar Used RIF Installer 2 | . . . . . . 1 . 1 . . . . Watcher Feeds 1 | . . . . . . . . 1 . . . . Robots Hacked 1 | . . . . . . . . . . 1 . . Non-combat . | . . . . . . . . . . . . . Combat 1 | . . . . . . . . . . 1 . . Robot Hacks Applied 1 | . . . . . . . . . . 1 . . parse_system 1 | . . . . . . . . . . 1 . . Relay Couplers Released 29 | . . . . . . 8 . 18 . . . 3 Machine Destruction 29 | . . . . . . 8 . 18 . . . 3 Attached 1 | . . . . . . . . . 1 . . . Fabnet Peak Effective % . | . . . . . . . . . . . . . Robots Rewired 3 | . . . . . . 3 . . . . . . Allies Hacked . | . . . . . . . . . . . . . Hacks Repelled . | . . . . . . . . . . . . . Allies | -11 -10 -10 -10 -9 -8 -8 -8 -8 -7 -7 -7 -7 -------- Run | Jun Mat Min Exi Min Mat Gar Mat Gar Fac Was Fac Gar Total Allies 23 | . . . . . . 3 . . . 20 . . Largest Group 19 | . . . . . . 3 . . . 19 . . Highest-Rated Group 475 | . . . . . . 63 . . . 475 . . Highest-Rated Ally 35 | . . . . . . 21 . . . 35 . . Total Orders . | . . . . . . . . . . . . . Ally Attacks 112 | . . . . . . 18 . . . 94 . . Total Damage 4185 | . . . . . . 481 . . . 3704 . . Kills 19 | . . . . . . 4 . . . 15 . . Allies Corrupted . | . . . . . . . . . . . . . Allies Melted 1 | . . . . . . 1 . . . . . . Intel | -11 -10 -10 -10 -9 -8 -8 -8 -8 -7 -7 -7 -7 ------- Run | Jun Mat Min Exi Min Mat Gar Mat Gar Fac Was Fac Gar Robot Analysis Total 3 | . 2 . . . 1 . . . . . . . Derelict Logs Recovered 3 | . . 2 . 1 . . . . . . . . Drone Launches . | . . . . . . . . . . . . . Drone Recoveries . | . . . . . . . . . . . . . Exploration | -11 -10 -10 -10 -9 -8 -8 -8 -8 -7 -7 -7 -7 ------------- Run | Jun Mat Min Exi Min Mat Gar Mat Gar Fac Was Fac Gar Turns Passed 17585 | 292 1327 709 771 196 3200 2384 2017 2263 2047 1091 1021 267 Spaces Moved 7350 | 138 685 438 496 127 1123 832 613 832 820 680 502 64 Core 5 | 5 . . . . . . . . . . . . Treads 4963 | 133 245 . . . 744 832 613 832 695 303 502 64 Legs . | . . . . . . . . . . . . . Wheels 2382 | . 440 438 496 127 379 . . . 125 377 . . Hover . | . . . . . . . . . . . . . Flight . | . . . . . . . . . . . . . Fastest Speed 50 | 50 95 155 155 155 80 240 160 240 98 98 160 160 Average Speed 193 | 156 159 155 155 155 213 240 239 240 178 143 161 178 Slowest Speed 395 | 160 240 155 155 155 395 240 240 240 240 240 240 240 Overloaded Moves . | . . . . . . . . . . . . . Propulsion Burnouts . | . . . . . . . . . . . . . Robots Hopped . | . . . . . . . . . . . . . Cave-ins Triggered 1 | . . . . . . . . . . 1 . . Exploration Rate (%) 52 | 10 96 70 73 38 67 65 52 67 24 95 18 10 Regions Visited 12 Branch Regions 3 Pre-discovered Areas 4 | . . 1 1 1 1 . . . . . . . Known Exits Taken 3 | . . . . . 1 . 1 . . . 1 . Unknown Exits Taken 5 | 1 1 1 1 1 . . . . . . . . Scrap Searched 1 | . . 1 . . . . . . . . . . Spaces Dug 50 | . 10 5 . . . 9 2 4 16 . 4 . Terrain Destroyed 378 | . 32 52 . . 62 148 17 21 40 1 5 . Melee 24 | . . . . . . 6 2 4 8 . 4 . Projectile 23 | . 1 . . . . . 14 1 6 1 . . AOE 329 | . 31 52 . . 62 142 . 16 26 . . . Terrain Rammed . | . . . . . . . . . . . . . Walls Destroyed . | . . . . . . . . . . . . . Machines Disabled . | . . . . . . . . . . . . . Actions | -11 -10 -10 -10 -9 -8 -8 -8 -8 -7 -7 -7 -7 --------- Run | Jun Mat Min Exi Min Mat Gar Mat Gar Fac Was Fac Gar Total 9403 | 178 807 461 500 126 1625 1049 967 973 1158 768 638 153 Wait 702 | . 15 5 . . 185 21 212 28 124 1 67 44 Move 7338 | 137 684 437 495 126 1122 830 613 831 820 678 501 64 Hop . | . . . . . . . . . . . . . Pick Up 158 | 10 19 3 2 . 53 11 9 3 17 15 15 1 Fast Attach 42 | 7 1 . . . 7 4 4 1 8 8 2 . Attach 85 | . 2 1 . . 28 4 11 4 27 3 3 2 Detach 20 | . 1 . . . 2 2 . 3 1 8 1 2 Swap 156 | . 10 4 . . 35 29 17 16 26 5 10 4 Drop 102 | 2 8 3 3 . 28 19 4 6 . 27 2 . Fire 615 | 22 66 8 . . 142 81 93 55 78 22 19 29 Melee 121 | . . . . . 20 17 2 10 54 . 18 . Ram 2 | . . . . . 2 . . . . . . . Kick . | . . . . . . . . . . . . . Crush 14 | . 1 . . . 1 . 2 . 3 . . 7 Escape Stasis 25 | . . . . . . 8 . 16 . 1 . . Rewire 23 | . . . . . . 23 . . . . . . Trap . | . . . . . . . . . . . . . Miscellaneous . | . . . . . . . . . . . . . Route ------- -11/Junkyard -10/Materials (discovered 5 exits: [*Mat x3] / *Min x2) -10/Mines (discovered 2 exits: [*Mat] / *Exi) -10/Exiles (discovered 2 exits: [*Min x2]) -9/Mines -8/Materials (discovered 3 exits: *Fac / [*Sto] / Gar) -8/Garrison -8/Materials (discovered 2 exits: [*Sto] / Gar) -8/Garrison (discovered 2 exits: *Fac x2) -7/Factory -7/Waste -7/Factory -7/Garrison History --------- Turn | Location | Event 25 | -11/Junkyard | Discovered new exit (range 16) 293 | -11/Junkyard | Entered Materials 302 | -10/Materials | Build established: Mutant 701 | -10/Materials | Discovered new exit (range 3) 927 | -10/Materials | Discovered new exit (range 8) 1046 | -10/Materials | Discovered new exit (range 10) 1142 | -10/Materials | Discovered new exit (range 9) 1429 | -10/Materials | Discovered new exit (range 6) 1620 | -10/Materials | Entered Mines 1638 | -10/Mines | Met a Derelict bent on vengeance 1656 | -10/Mines | Learned location of Zion (-7) 1873 | -10/Mines | Discovered new exit (range 6) 2320 | -10/Mines | Deemed a non-threat by the Exiles lab entrance 2321 | -10/Mines | Discovered new exit (range 5) 2329 | -10/Mines | Entered Exiles 2353 | -10/Exiles | Discovered new exit (range 14) 2379 | -10/Exiles | Met 8R-AWN 2405 | -10/Exiles | Met EX-HEX 2466 | -10/Exiles | Met EX-DEC 2526 | -10/Exiles | Met EX-BIN 2560 | -10/Exiles | Aligned with FarCom system 2562 | -10/Exiles | Given EX-Vault access code 2680 | -10/Exiles | Opened EX-Vault 2699 | -10/Exiles | Found Cloak of Protection 2732 | -10/Exiles | Warned to stay clear of 0b10 Research branches 2849 | -10/Exiles | Discovered new exit (range 10) 3100 | -10/Exiles | Left Exiles lab with Cloak of Protection 3100 | -10/Exiles | Entered Mines 3285 | -9/Mines | Discovered new exit (range 8) 3289 | -9/Mines | Assembled infested the area 3296 | -9/Mines | Entered Materials 3296 | -8/Materials | Evolved 4 slots: Propulsion x1, Utility x3 3604 | -8/Materials | Build established: Hauler-Mutant 3900 | -8/Materials | Lost 4 parts (2p1n1u) 4145 | -8/Materials | Lost 4 parts (2n2u) 4546 | -8/Materials | Garrison activated, responded to threat 4569 | -8/Materials | Build established: Scavenger-Mutant 4695 | -8/Materials | Lost 5 parts (1n3u1w) 4928 | -8/Materials | Discovered new exit (range 15) 5387 | -8/Materials | Garrison activated, responded to threat 5438 | -8/Materials | Core integrity fell below 50% 5471 | -8/Materials | Lost 4 parts (2p2u) 5665 | -8/Materials | Discovered new exit (range 13) 6481 | -8/Materials | Identified exit to Garrison 6496 | -8/Materials | Entered Garrison 6605 | -8/Garrison | Triggered checkpoint 6682 | -8/Garrison | Destroyed 9 combat bots 6811 | -8/Garrison | Phase Generator disabled 7177 | -8/Garrison | Installed Relay Interface Framework 7313 | -8/Garrison | Garrison Relay disabled 7378 | -8/Garrison | Triggered checkpoint 7402 | -8/Garrison | Triggered checkpoint 7620 | -8/Garrison | Triggered checkpoint 7820 | -8/Garrison | Triggered checkpoint 7832 | -8/Garrison | Triggered checkpoint 7837 | -8/Garrison | Triggered checkpoint 7861 | -8/Garrison | Triggered checkpoint 8011 | -8/Garrison | Discovered new exit (range 13) 8183 | -8/Garrison | Triggered checkpoint 8508 | -8/Garrison | Garrison Relay disabled 8880 | -8/Garrison | Entered Materials 8880 | -8/Materials | Discovered new exit (range 7) 9461 | -8/Materials | Core integrity fell below 20% 9910 | -8/Materials | Lost 3 parts (1p2u) 10000 | -8/Materials | Repaired Hrd. Medium Armor Plating 10080 | -8/Materials | First assault squad dispatched 10594 | -8/Materials | Lost 5 parts (1p2n1u1w) 10897 | -8/Materials | Identified exit to Garrison 10897 | -8/Materials | Entered Garrison 11015 | -8/Garrison | Triggered checkpoint 11035 | -8/Garrison | Garrison Relay disabled 11186 | -8/Garrison | Triggered checkpoint 11330 | -8/Garrison | Triggered checkpoint 11436 | -8/Garrison | Triggered checkpoint 11646 | -8/Garrison | Triggered checkpoint 11715 | -8/Garrison | Garrison Relay disabled 11764 | -8/Garrison | Discovered new exit (range 13) 11897 | -8/Garrison | Garrison Relay disabled 12098 | -8/Garrison | Triggered checkpoint 12154 | -8/Garrison | Triggered checkpoint 12274 | -8/Garrison | Discovered new exit (range 10) 12326 | -8/Garrison | Triggered checkpoint 12370 | -8/Garrison | Garrison Relay disabled 12503 | -8/Garrison | Expanded RIF knowledge: Watcher Feeds 13160 | -8/Garrison | Entered Factory 13160 | -7/Factory | Evolved 2 slots: Propulsion x1, Utility x1 13560 | -7/Factory | First assault squad dispatched 13689 | -7/Factory | Lost 3 parts (2u1w) 13750 | -7/Factory | Lost 3 parts (1p1n1u) 14183 | -7/Factory | System corruption reached 10% 14194 | -7/Factory | Lost 5 parts (1p3n1u) 14363 | -7/Factory | Cargo convoy interrupted 14468 | -7/Factory | Fabricated Hvy. Armor Plating (x1) 14567 | -7/Factory | Lost 6 parts (1n4u1w) 14961 | -7/Factory | Lost 9 parts (1p4n3u1w) 14972 | -7/Factory | Destroyed 8 combat bots 15207 | -7/Factory | Sucked down chute 15207 | -7/Factory | Entered Waste 15208 | -7/Waste | Met a frightened Derelict 15227 | -7/Waste | Spotted C-40 Crusher 15239 | -7/Waste | Destroyed C-40 Crusher 15251 | -7/Waste | Spotted C-40 Crusher 15251 | -7/Waste | Spotted C-40 Crusher 15263 | -7/Waste | Destroyed C-40 Crusher 15282 | -7/Waste | Destroyed C-40 Crusher 15315 | -7/Waste | Found Damper Plating 15319 | -7/Waste | Found Damper Plating 15331 | -7/Waste | Spotted C-40 Crusher 15365 | -7/Waste | Warlord forces began an assault 15367 | -7/Waste | Allies destroyed C-40 Crusher 15445 | -7/Waste | Spotted C-40 Crusher 15493 | -7/Waste | Crushed by falling debris 15549 | -7/Waste | Crushed by Compactor (0 parts destroyed, 1 dropped) 15562 | -7/Waste | Destroyed C-40 Crusher 15799 | -7/Waste | Discovered new exit (range 15) 15936 | -7/Waste | Build established: Mutant 16264 | -7/Waste | Build established: Scavenger-Mutant 16298 | -7/Waste | Entered Factory 16363 | -7/Factory | Repaired Hyp. Gauss Rifle 16393 | -7/Factory | Repaired Hcp. Storage Unit 16993 | -7/Factory | Core integrity fell below 50% 16999 | -7/Factory | Core integrity fell below 20% 17317 | -7/Factory | Identified exit to Garrison 17319 | -7/Factory | Entered Garrison 17498 | -7/Garrison | Triggered checkpoint 17517 | -7/Garrison | Garrison Relay disabled 17586 | -7/Garrison | Destroyed by G-47 Trooper with Particle Gun Last Messages --------------- 17430_ Slammed into G-47 Trooper. 17433_ Critical hit (Burn: +37). 17435_ Slammed into G-47 Trooper. 17435_ G-47 Trooper knocked back. 17437_ Slammed into G-47 Trooper. 17439_ Hyp. Gauss Rifle destroyed. 17439_ Slammed into G-47 Trooper. 17444_ Crushed G-47 Trooper. 17444_ G-47 Trooper destroyed. 17445_ Acquired 46 matter. 17478_ System corrupted: Energy discharge (-78). 17495_ System corrupted: Heat flow error (+180). 17498_ Beams of light sweep through the air. An alarm sounds. 17517_ Garrison Relay disabled. 17517_ Relay Coupler [Hunter] tumbles out of relay unit. 17517_ Relay Coupler [Grunt] tumbles out of relay unit. 17517_ Relay Coupler [NC] tumbles out of relay unit. 17521_ Acquired Relay Coupler [NC]. 17534_ System corrupted: Matter fused (-7). 17565_ B-48 Gladiator destroyed. Map ----- +----------------------------------------------------+ | | | | | | | | | ?????????????????????????????????????????????????? | | ?????????????????????????????????????????????????? | | ?????????????????????????????????????????????????? | | ?????????????????????????????????????????????????? | | ?????????????????????????????????????????????????? | | ?????????????????????????????????????????????????? | | ?????????????????????????????????????????????????? | | ?????????????????????????????????????????????????? | | ?????????????????????????????????????????????????? | | ?????????????????????????????????????????????????? | | ?????????????????????????????????????????????????? | | ?????????????????????????????????????????????????? | | ?????????????????????????????????????????????????? | | ?????????????????????????????????????????????????? | | ?????????????????????????????????????????????????? | | ?????????????????????????????????????????????????? | | ?????????????????????????####????????????????????? | | ???????????????????????### #????????????????????? | | ???????????????????????#"# #????????????????????? | | ???????????????????????# #????????????????????? | | ???????????????????????# !! #????????????????????? | | ???????????????????????#"@/ #????????????????????? | | ???????????????????????#"#gg#????????????????????? | | ???????????????????????###^^#????????????????????? | | ?????????????????????????# #????????????????????? | | ?????????????????????????# #????????????????????? | | ???????????????????????### #????????????????????? | | ???????????????????????# #????????????????????? | | ???????????????????????# #????????????????????? | | ???????????????????????# #??????????????????### | | ???????????????????????### #??????????????????# | | ??????????????????######## #################### | | ???????????????# = = === | | ???????????????# * ![ ! | | ???????????????# =[** | | ???????????????# #######++################### ## | | ???????????????#??????????????????????????????# ## | | ??????????????????????????????????????????????# "# | | ??????????????????????????????????????????????# T# | | ??????????????????????????????????????????????#""# | | ??????????????????????????????????????????????#### | | ?????????????????????????????????????????????????? | | ?????????????????????????????????????????????????? | | ?????????????????????????????????????????????????? | | ?????????????????????????????????????????????????? | | ?????????????????????????????????????????????????? | +----------------------------------------------------+ Best States ------------- Heat Dissipation 76 Energy Generation 21 Energy Capacity 325 Matter Stores 300 Matter Capacity 300 Sight Range 16 Terrain Scan Density 10 Cloak Strength 5 Base Temperature (-) 100 Armor Coverage 1600 Resistance: KI 30 Resistance: EM 90 Core Shielding 20 Utility Shielding 66 Evasion (%) 41 Launcher Accuracy 30 Recoil Reduction 4 Relay Coupler Types 1 Relay Coupler Value 21 Item Schematics ----------------- Hvy. Armor Plating | -8/Materials | Scanalyzed Robot Schematics ------------------ None Fabricated ------------ Hvy. Armor Plating | x1 | -7/Factory Alien Tech Used ----------------- None Achievements -------------- None Challenges ------------ None Game ------ Seed AluminumSiegeWand Manual? 0 Play Time 03:25:37 Cumulative 176.5 hours Start 2023.08.14 @ 22:13:04 End 2023.08.15 @ 16:51:48 Sessions 3 Manual Loads 0 Difficulty Rogue Special Mode None Game No. 59 Rogue 59 Adventurer 0 Explorer 0 Win Type - Total 1 Types 1/0/0/0/0/0/0/0/0 Lore% 50 Gallery% 63 Achievement% 53 Wizard Run 0 Options --------- ASCII 0 Keyboard 1 Movement Vi Keybinds 0 Fullscreen 1 Font 18/SmallcapsGlow Map View 76x50 Tactical HUD 1 Map Filters NONE Filters NONE Steam 1 RUN: f2856cc9-1980-412f-8c3b-51c54549fe43